[Event "Late-Titled-Tuesday-Blitz-July-09-2024"]
[Site "Chess.com"]
[Date "2024.07.09"]
[Round "7"]
[White "HATilay"]
[Black "sammartin99"]
[Result "1-0"]
[WhiteElo "2575"]
[BlackElo "2420"]
[TimeControl "180+1"]
[EndTime "15:14:13 PDT"]
[Termination "HATilay won by resignation"]

1. e4 {[%clk 0:03:00.9]} 1... e6 {[%clk 0:02:55.8]} 2. d4 {[%clk 0:03:00.6]}
2... d5 {[%clk 0:02:54.9]} 3. e5 {[%clk 0:03:01]} 3... c5 {[%clk 0:02:54]} 4. c3
{[%clk 0:03:01.3]} 4... Nc6 {[%clk 0:02:53.2]} 5. Nf3 {[%clk 0:03:01.3]} 5...
Bd7 {[%clk 0:02:52.7]} 6. a3 {[%clk 0:03:01.5]} 6... f6 {[%clk 0:02:50.6]} 7.
Bd3 {[%clk 0:03:01.1]} 7... fxe5 {[%clk 0:02:47.1]} 8. Nxe5 {[%clk 0:02:57.7]}
8... Nxe5 {[%clk 0:02:46.5]} 9. dxe5 {[%clk 0:02:57.5]} 9... Ne7 {[%clk
0:02:46.7]} 10. O-O {[%clk 0:02:57.3]} 10... Qc7 {[%clk 0:02:44.6]} 11. Re1
{[%clk 0:02:55.5]} 11... c4 {[%clk 0:02:43.6]} 12. Bc2 {[%clk 0:02:53.9]} 12...
O-O-O {[%clk 0:02:42.1]} 13. b3 {[%clk 0:02:51.5]} 13... Nc6 {[%clk 0:02:26.1]}
14. bxc4 {[%clk 0:02:37.6]} 14... dxc4 {[%clk 0:02:27]} 15. Qe2 {[%clk
0:02:37.5]} 15... Bc5 {[%clk 0:02:15.2]} 16. Nd2 {[%clk 0:02:31]} 16... Rhf8
{[%clk 0:02:06.6]} 17. Ne4 {[%clk 0:02:31.2]} 17... Nxe5 {[%clk 0:01:54.1]} 18.
Nxc5 {[%clk 0:02:30.4]} 18... Qxc5 {[%clk 0:01:55]} 19. Be3 {[%clk 0:02:25.3]}
19... Qa5 {[%clk 0:01:36.5]} 20. Rab1 {[%clk 0:01:59.9]} 20... Bc6 {[%clk
0:01:23.6]} 21. Bd4 {[%clk 0:01:54.8]} 21... Nd3 {[%clk 0:00:20.7]} 22. Qxe6+
{[%clk 0:01:49.8]} 22... Kb8 {[%clk 0:00:21]} 23. Qxc6 {[%clk 0:01:48.9]} 1-0

[Event "Late-Titled-Tuesday-Blitz-July-09-2024"]
[Site "Chess.com"]
[Date "2024.07.09"]
[Round "7"]
[White "Al_Shima"]
[Black "shirovin"]
[Result "1-0"]
[WhiteElo "2486"]
[BlackElo "2088"]
[TimeControl "180+1"]
[EndTime "15:14:25 PDT"]
[Termination "Al_Shima won by checkmate"]

1. b3 {[%clk 0:03:00.9]} 1... f5 {[%clk 0:02:58.5]} 2. Bb2 {[%clk 0:02:59.1]}
2... Nf6 {[%clk 0:02:59]} 3. e3 {[%clk 0:02:55.4]} 3... d6 {[%clk 0:02:58.4]} 4.
f4 {[%clk 0:02:48.9]} 4... Nc6 {[%clk 0:02:52.4]} 5. Nf3 {[%clk 0:02:43.6]} 5...
e6 {[%clk 0:02:46.1]} 6. h3 {[%clk 0:02:42.3]} 6... Be7 {[%clk 0:02:29.2]} 7. g4
{[%clk 0:02:39.9]} 7... O-O {[%clk 0:02:25.4]} 8. gxf5 {[%clk 0:02:38.4]} 8...
exf5 {[%clk 0:02:24.3]} 9. Rg1 {[%clk 0:02:34.8]} 9... Rf7 {[%clk 0:01:37.9]}
10. Qe2 {[%clk 0:02:27.2]} 10... Ne4 {[%clk 0:01:35.6]} 11. d3 {[%clk
0:02:19.5]} 11... Bh4+ {[%clk 0:01:33.4]} 12. Kd1 {[%clk 0:01:59.4]} 12... Ng3
{[%clk 0:01:21]} 13. Qg2 {[%clk 0:01:58.4]} 13... Nxf1 {[%clk 0:01:17.1]} 14.
Rxf1 {[%clk 0:01:56]} 14... Bf6 {[%clk 0:01:14.6]} 15. Nc3 {[%clk 0:01:49]}
15... d5 {[%clk 0:00:54.5]} 16. d4 {[%clk 0:01:45.6]} 16... Re7 {[%clk
0:00:41.2]} 17. Ne5 {[%clk 0:01:43.4]} 17... Bd7 {[%clk 0:00:31.4]} 18. Qxd5+
{[%clk 0:01:39.1]} 18... Kf8 {[%clk 0:00:27.8]} 19. Ba3 {[%clk 0:01:26.6]} 19...
Bxe5 {[%clk 0:00:22.9]} 20. fxe5 {[%clk 0:01:24.1]} 20... Ke8 {[%clk 0:00:16.9]}
21. Qg8# {[%clk 0:01:22.1]} 1-0

[Event "Late-Titled-Tuesday-Blitz-July-09-2024"]
[Site "Chess.com"]
[Date "2024.07.09"]
[Round "7"]
[White "NajdorfPlayerc5"]
[Black "santig8"]
[Result "0-1"]
[WhiteElo "2391"]
[BlackElo "2289"]
[TimeControl "180+1"]
[EndTime "15:14:39 PDT"]
[Termination "santig8 won on time"]

1. e4 {[%clk 0:02:59.8]} 1... c5 {[%clk 0:02:58.2]} 2. Nf3 {[%clk 0:02:59.7]}
2... d6 {[%clk 0:02:53.6]} 3. d4 {[%clk 0:02:59.8]} 3... cxd4 {[%clk 0:02:54.5]}
4. Qxd4 {[%clk 0:02:59]} 4... Nc6 {[%clk 0:02:53.4]} 5. Bb5 {[%clk 0:02:57.7]}
5... Bd7 {[%clk 0:02:51.5]} 6. Bxc6 {[%clk 0:02:57.9]} 6... Bxc6 {[%clk
0:02:52.4]} 7. Nc3 {[%clk 0:02:56.1]} 7... Nf6 {[%clk 0:02:50.7]} 8. Bg5 {[%clk
0:02:54.8]} 8... e6 {[%clk 0:02:37.3]} 9. O-O-O {[%clk 0:02:50.7]} 9... Be7
{[%clk 0:02:35.9]} 10. Kb1 {[%clk 0:02:47.9]} 10... Qc7 {[%clk 0:02:30]} 11.
Rhe1 {[%clk 0:02:39.6]} 11... O-O-O {[%clk 0:02:29.5]} 12. Qxa7 {[%clk
0:02:35.4]} 12... Qb8 {[%clk 0:02:25.7]} 13. Qxb8+ {[%clk 0:02:19.5]} 13... Kxb8
{[%clk 0:02:26.6]} 14. e5 {[%clk 0:02:09]} 14... Bxf3 {[%clk 0:02:20.6]} 15.
gxf3 {[%clk 0:01:12.8]} 15... dxe5 {[%clk 0:02:16.6]} 16. Rxd8+ {[%clk
0:01:13.7]} 16... Rxd8 {[%clk 0:02:14.6]} 17. Rxe5 {[%clk 0:01:11.4]} 17... h6
{[%clk 0:02:07.6]} 18. Bc1 {[%clk 0:01:06.3]} 18... Bd6 {[%clk 0:02:06.9]} 19.
Re1 {[%clk 0:01:02.8]} 19... Bxh2 {[%clk 0:02:04.6]} 20. f4 {[%clk 0:01:02.8]}
20... Nd5 {[%clk 0:01:50.7]} 21. Nxd5 {[%clk 0:00:40.8]} 21... Rxd5 {[%clk
0:01:51.6]} 22. Rh1 {[%clk 0:00:40.5]} 22... Rh5 {[%clk 0:01:51.1]} 23. f5
{[%clk 0:00:40.9]} 23... e5 {[%clk 0:01:49.6]} 24. c4 {[%clk 0:00:33.8]} 24...
g6 {[%clk 0:01:46.8]} 25. fxg6 {[%clk 0:00:33.2]} 25... fxg6 {[%clk 0:01:47.7]}
26. f4 {[%clk 0:00:25.7]} 26... Bxf4 {[%clk 0:01:46]} 27. Rxh5 {[%clk
0:00:21.4]} 27... gxh5 {[%clk 0:01:46.9]} 28. Bxf4 {[%clk 0:00:21.7]} 28... exf4
{[%clk 0:01:46.4]} 29. Kc2 {[%clk 0:00:21.6]} 29... h4 {[%clk 0:01:45.7]} 0-1

[Event "Late-Titled-Tuesday-Blitz-July-09-2024"]
[Site "Chess.com"]
[Date "2024.07.09"]
[Round "7"]
[White "Vaporwaffle94"]
[Black "DanLowinger"]
[Result "1-0"]
[WhiteElo "2297"]
[BlackElo "2392"]
[TimeControl "180+1"]
[EndTime "15:14:44 PDT"]
[Termination "Vaporwaffle94 won by resignation"]

1. c4 {[%clk 0:03:00.9]} 1... Nf6 {[%clk 0:02:59.5]} 2. a3 {[%clk 0:03:01.8]}
2... g6 {[%clk 0:02:56.3]} 3. b4 {[%clk 0:03:01.3]} 3... Bg7 {[%clk 0:02:56.4]}
4. Bb2 {[%clk 0:03:02.1]} 4... O-O {[%clk 0:02:56.8]} 5. Nf3 {[%clk 0:03:02.2]}
5... a5 {[%clk 0:02:55.4]} 6. b5 {[%clk 0:03:01.7]} 6... d6 {[%clk 0:02:55]} 7.
g3 {[%clk 0:03:02.1]} 7... e5 {[%clk 0:02:52.3]} 8. Bg2 {[%clk 0:03:02.5]} 8...
Nbd7 {[%clk 0:02:47.7]} 9. O-O {[%clk 0:03:02.1]} 9... Nc5 {[%clk 0:02:45.2]}
10. d4 {[%clk 0:03:01.8]} 10... exd4 {[%clk 0:02:44.1]} 11. Nxd4 {[%clk
0:03:02.7]} 11... a4 {[%clk 0:02:41.2]} 12. Nc3 {[%clk 0:03:01.9]} 12... Re8
{[%clk 0:02:39.7]} 13. Nd5 {[%clk 0:03:01.5]} 13... Nxd5 {[%clk 0:02:19.1]} 14.
Bxd5 {[%clk 0:03:02.4]} 14... Bh3 {[%clk 0:01:44.1]} 15. Re1 {[%clk 0:02:57.1]}
15... Qf6 {[%clk 0:01:42.4]} 16. Rb1 {[%clk 0:02:53.6]} 16... Ne4 {[%clk
0:01:20.2]} 17. Bxe4 {[%clk 0:02:50.6]} 17... Rxe4 {[%clk 0:01:21.1]} 18. Nc2
{[%clk 0:02:36.6]} 18... Qe6 {[%clk 0:01:10.4]} 19. Bxg7 {[%clk 0:02:36.8]}
19... Kxg7 {[%clk 0:01:11.3]} 20. Ne3 {[%clk 0:02:32.3]} 20... Rxe3 {[%clk
0:00:44.7]} 21. Qd4+ {[%clk 0:02:28.7]} 21... Re5 {[%clk 0:00:43.9]} 22. f4
{[%clk 0:02:28.2]} 22... Qg4 {[%clk 0:00:41.4]} 23. Qc3 {[%clk 0:02:23.1]} 23...
Re8 {[%clk 0:00:25]} 24. fxe5 {[%clk 0:02:22.5]} 24... Rxe5 {[%clk 0:00:25.9]}
25. Rbd1 {[%clk 0:02:21.4]} 25... Qe6 {[%clk 0:00:19.2]} 26. Rd2 {[%clk
0:02:17.3]} 26... f6 {[%clk 0:00:19.2]} 27. Qf3 {[%clk 0:02:15.5]} 27... b6
{[%clk 0:00:16.6]} 28. Kf2 {[%clk 0:02:09.3]} 28... Qxc4 {[%clk 0:00:14.9]} 29.
Kg1 {[%clk 0:02:05]} 29... Qxb5 {[%clk 0:00:12.6]} 30. Rc1 {[%clk 0:02:03.5]}
30... c5 {[%clk 0:00:10]} 31. Rxd6 {[%clk 0:02:02]} 31... Qe8 {[%clk 0:00:08.9]}
32. Qxf6+ {[%clk 0:02:02]} 32... Kh6 {[%clk 0:00:07.5]} 33. Qh4+ {[%clk
0:01:58.3]} 33... Rh5 {[%clk 0:00:07.6]} 34. Qf4+ {[%clk 0:01:58.8]} 34... Kg7
{[%clk 0:00:07.5]} 35. Rcd1 {[%clk 0:01:55.8]} 35... Qxe2 {[%clk 0:00:05.1]} 36.
Rd7+ {[%clk 0:01:52]} 36... Bxd7 {[%clk 0:00:04.2]} 37. Rxd7+ {[%clk 0:01:52.9]}
1-0

[Event "Late-Titled-Tuesday-Blitz-July-09-2024"]
[Site "Chess.com"]
[Date "2024.07.09"]
[Round "7"]
[White "evgchess5"]
[Black "Oleksandr_Bortnyk"]
[Result "0-1"]
[WhiteElo "2863"]
[BlackElo "3056"]
[TimeControl "180+1"]
[EndTime "15:14:55 PDT"]
[Termination "Oleksandr_Bortnyk won on time"]

1. e4 {[%clk 0:03:00.9]} 1... Nf6 {[%clk 0:02:59.6]} 2. e5 {[%clk 0:03:00.6]}
2... Nd5 {[%clk 0:02:59.6]} 3. d4 {[%clk 0:03:00.9]} 3... d6 {[%clk 0:03:00]} 4.
Nf3 {[%clk 0:03:01.3]} 4... dxe5 {[%clk 0:03:00.6]} 5. Nxe5 {[%clk 0:03:01.3]}
5... c6 {[%clk 0:03:01.3]} 6. Be2 {[%clk 0:03:01.1]} 6... Bf5 {[%clk 0:03:01.6]}
7. O-O {[%clk 0:03:01]} 7... Nd7 {[%clk 0:03:02.3]} 8. c4 {[%clk 0:03:01.3]}
8... N5f6 {[%clk 0:03:02.4]} 9. Nf3 {[%clk 0:03:00.9]} 9... e6 {[%clk 0:03:03]}
10. Nc3 {[%clk 0:03:00.7]} 10... Bd6 {[%clk 0:03:03.1]} 11. h3 {[%clk
0:03:00.7]} 11... O-O {[%clk 0:03:02.7]} 12. Be3 {[%clk 0:03:01]} 12... Ne4
{[%clk 0:03:03]} 13. Qb3 {[%clk 0:02:59.8]} 13... Nxc3 {[%clk 0:03:03.1]} 14.
bxc3 {[%clk 0:02:58.4]} 14... Qc7 {[%clk 0:03:01.9]} 15. c5 {[%clk 0:02:27.3]}
15... Be7 {[%clk 0:03:00.2]} 16. c4 {[%clk 0:01:50.4]} 16... b6 {[%clk
0:02:58.8]} 17. cxb6 {[%clk 0:01:50.3]} 17... axb6 {[%clk 0:02:59.7]} 18. a4
{[%clk 0:01:48.5]} 18... Bf6 {[%clk 0:02:53.3]} 19. Rac1 {[%clk 0:01:46.2]}
19... Qa7 {[%clk 0:02:40.8]} 20. d5 {[%clk 0:01:40.7]} 20... c5 {[%clk 0:02:37]}
21. Rfd1 {[%clk 0:01:30.9]} 21... Qxa4 {[%clk 0:02:33.3]} 22. Qxa4 {[%clk
0:01:30.3]} 22... Rxa4 {[%clk 0:02:34.2]} 23. g4 {[%clk 0:01:28.2]} 23... Be4
{[%clk 0:02:05.3]} 24. dxe6 {[%clk 0:01:23.4]} 24... Ne5 {[%clk 0:01:45.4]} 25.
e7 {[%clk 0:00:20.7]} 25... Re8 {[%clk 0:01:36.6]} 26. Rd8 {[%clk 0:00:20]}
26... Ra8 {[%clk 0:01:34.9]} 27. Nxe5 {[%clk 0:00:15.6]} 27... Bxe5 {[%clk
0:01:35.8]} 28. Rcd1 {[%clk 0:00:12.9]} 28... Bf6 {[%clk 0:01:32]} 29. Rxa8
{[%clk 0:00:07.9]} 29... Rxa8 {[%clk 0:01:30.4]} 0-1

[Event "Late-Titled-Tuesday-Blitz-July-09-2024"]
[Site "Chess.com"]
[Date "2024.07.09"]
[Round "7"]
[White "ninguno46"]
[Black "Hirna2005"]
[Result "1-0"]
[WhiteElo "2580"]
[BlackElo "2420"]
[TimeControl "180+1"]
[EndTime "15:14:57 PDT"]
[Termination "ninguno46 won by resignation"]

1. Nf3 {[%clk 0:03:00.9]} 1... g6 {[%clk 0:02:58.9]} 2. c4 {[%clk 0:03:00]} 2...
Bg7 {[%clk 0:02:58.9]} 3. d4 {[%clk 0:03:00.3]} 3... d6 {[%clk 0:02:59.3]} 4. g3
{[%clk 0:03:00.7]} 4... Nc6 {[%clk 0:02:58.1]} 5. Bg2 {[%clk 0:03:01]} 5... Nf6
{[%clk 0:02:57.9]} 6. d5 {[%clk 0:03:00]} 6... Nb8 {[%clk 0:02:56.1]} 7. O-O
{[%clk 0:02:59.8]} 7... O-O {[%clk 0:02:56.1]} 8. Nc3 {[%clk 0:02:59.9]} 8... c5
{[%clk 0:02:53.7]} 9. h3 {[%clk 0:02:58.9]} 9... a6 {[%clk 0:02:52.3]} 10. a4
{[%clk 0:02:59]} 10... Bd7 {[%clk 0:02:48]} 11. e4 {[%clk 0:02:58.8]} 11... Qc8
{[%clk 0:02:40.8]} 12. Kh2 {[%clk 0:02:58.4]} 12... a5 {[%clk 0:02:33]} 13. e5
{[%clk 0:02:57.5]} 13... Ne8 {[%clk 0:02:32.5]} 14. Re1 {[%clk 0:02:56.5]} 14...
Na6 {[%clk 0:02:30.5]} 15. Bf4 {[%clk 0:02:55.7]} 15... Nb4 {[%clk 0:02:27.5]}
16. Qd2 {[%clk 0:02:55.4]} 16... Bf5 {[%clk 0:02:17.1]} 17. g4 {[%clk
0:02:43.1]} 17... Bd7 {[%clk 0:01:58.3]} 18. Ne4 {[%clk 0:02:36.1]} 18... dxe5
{[%clk 0:01:50.7]} 19. Nxe5 {[%clk 0:02:35.3]} 19... Nf6 {[%clk 0:01:46.9]} 20.
Ng3 {[%clk 0:02:29.7]} 20... e6 {[%clk 0:01:37.3]} 21. Bh6 {[%clk 0:01:55]}
21... Bxh6 {[%clk 0:01:27.3]} 22. Qxh6 {[%clk 0:01:54.2]} 22... exd5 {[%clk
0:01:27.6]} 23. g5 {[%clk 0:01:48.9]} 23... Ne8 {[%clk 0:01:11.9]} 24. cxd5
{[%clk 0:01:47.8]} 24... Nc2 {[%clk 0:01:11.3]} 25. Ne4 {[%clk 0:01:45.3]} 25...
f5 {[%clk 0:01:00.6]} 26. Nxg6 {[%clk 0:01:34.5]} 26... hxg6 {[%clk 0:00:45]}
27. Qxg6+ {[%clk 0:01:34.5]} 27... Ng7 {[%clk 0:00:45.2]} 28. Nf6+ {[%clk
0:01:32.7]} 28... Rxf6 {[%clk 0:00:45.4]} 29. gxf6 {[%clk 0:01:32]} 29... Qf8
{[%clk 0:00:43.8]} 30. Re7 {[%clk 0:01:32.2]} 30... Qxe7 {[%clk 0:00:40.9]} 31.
fxe7 {[%clk 0:01:31]} 31... Nxa1 {[%clk 0:00:41.2]} 32. d6 {[%clk 0:01:28.3]}
32... Be6 {[%clk 0:00:21.1]} 33. d7 {[%clk 0:01:22.6]} 33... Bxd7 {[%clk
0:00:18.9]} 34. Bd5+ {[%clk 0:01:22]} 34... Be6 {[%clk 0:00:19.3]} 35. Bxe6+
{[%clk 0:01:22.2]} 1-0

[Event "Late-Titled-Tuesday-Blitz-July-09-2024"]
[Site "Chess.com"]
[Date "2024.07.09"]
[Round "7"]
[White "BardArtem"]
[Black "JAN2404"]
[Result "1-0"]
[WhiteElo "2782"]
[BlackElo "2109"]
[TimeControl "180+1"]
[EndTime "15:15:07 PDT"]
[Termination "BardArtem won on time"]

1. e4 {[%clk 0:03:00.9]} 1... c5 {[%clk 0:02:58.5]} 2. Nf3 {[%clk 0:03:00.7]}
2... d6 {[%clk 0:02:57.5]} 3. d4 {[%clk 0:03:00.9]} 3... cxd4 {[%clk 0:02:57.6]}
4. Qxd4 {[%clk 0:03:01.8]} 4... Nf6 {[%clk 0:02:57.4]} 5. Qd3 {[%clk 0:03:02.3]}
5... g6 {[%clk 0:02:52.8]} 6. Nc3 {[%clk 0:03:00.9]} 6... Nc6 {[%clk 0:02:51.8]}
7. e5 {[%clk 0:02:57.3]} 7... dxe5 {[%clk 0:02:46.7]} 8. Qxd8+ {[%clk
0:02:58.2]} 8... Kxd8 {[%clk 0:02:47]} 9. Bc4 {[%clk 0:02:55.8]} 9... Nd4 {[%clk
0:02:38.4]} 10. Nxe5 {[%clk 0:02:49.7]} 10... Nxc2+ {[%clk 0:02:24.7]} 11. Ke2
{[%clk 0:02:48.5]} 11... Be6 {[%clk 0:02:10.8]} 12. Bxe6 {[%clk 0:02:34.8]}
12... fxe6 {[%clk 0:02:08.9]} 13. Rd1+ {[%clk 0:02:03.3]} 13... Kc8 {[%clk
0:01:54.1]} 14. Nf7 {[%clk 0:01:55]} 14... Bg7 {[%clk 0:01:19.2]} 15. Nxh8
{[%clk 0:01:54.9]} 15... Nxa1 {[%clk 0:01:18.1]} 16. Nf7 {[%clk 0:01:54.4]}
16... Nd7 {[%clk 0:01:04.2]} 17. Bg5 {[%clk 0:01:21.7]} 17... Nc2 {[%clk
0:00:58.7]} 18. Bxe7 {[%clk 0:01:21.9]} 18... Bxc3 {[%clk 0:00:36.9]} 19. bxc3
{[%clk 0:01:18.3]} 19... b5 {[%clk 0:00:33.6]} 20. Rc1 {[%clk 0:01:15.1]} 20...
Na1 {[%clk 0:00:04.7]} 21. Rxa1 {[%clk 0:01:14.1]} 21... Nb6 {[%clk 0:00:04.9]}
22. Bc5 {[%clk 0:01:06.3]} 22... Nd5 {[%clk 0:00:01.6]} 23. Bd4 {[%clk 0:01:07]}
23... Kd7 {[%clk 0:00:01.1]} 24. a4 {[%clk 0:01:06.4]} 1-0

[Event "Late-Titled-Tuesday-Blitz-July-09-2024"]
[Site "Chess.com"]
[Date "2024.07.09"]
[Round "7"]
[White "cthake"]
[Black "LidongW"]
[Result "0-1"]
[WhiteElo "1826"]
[BlackElo "2271"]
[TimeControl "180+1"]
[EndTime "15:15:07 PDT"]
[Termination "LidongW won on time"]

1. c4 {[%clk 0:03:00.9]} 1... Nf6 {[%clk 0:02:58.6]} 2. Nc3 {[%clk 0:03:00.8]}
2... g6 {[%clk 0:02:57.6]} 3. g3 {[%clk 0:03:00.8]} 3... Bg7 {[%clk 0:02:58.5]}
4. Bg2 {[%clk 0:03:00.8]} 4... O-O {[%clk 0:02:58.6]} 5. d4 {[%clk 0:02:58.9]}
5... c6 {[%clk 0:02:58.7]} 6. e4 {[%clk 0:02:58.8]} 6... d6 {[%clk 0:02:58.3]}
7. Nge2 {[%clk 0:02:58.8]} 7... e5 {[%clk 0:02:57.5]} 8. d5 {[%clk 0:02:57.8]}
8... Na6 {[%clk 0:02:55.8]} 9. O-O {[%clk 0:02:56.4]} 9... Nc7 {[%clk
0:02:55.6]} 10. h3 {[%clk 0:02:55.1]} 10... a5 {[%clk 0:02:55.8]} 11. Be3 {[%clk
0:02:54.3]} 11... Qe7 {[%clk 0:02:54.3]} 12. Qd2 {[%clk 0:02:53.9]} 12... Nh5
{[%clk 0:02:48.7]} 13. Bh6 {[%clk 0:02:40.2]} 13... Bxh6 {[%clk 0:02:43.5]} 14.
Qxh6 {[%clk 0:02:39.1]} 14... c5 {[%clk 0:02:44.2]} 15. g4 {[%clk 0:02:12.5]}
15... Ng7 {[%clk 0:02:43.7]} 16. Ng3 {[%clk 0:01:54.8]} 16... f5 {[%clk
0:02:22.3]} 17. gxf5 {[%clk 0:01:54]} 17... gxf5 {[%clk 0:02:23.2]} 18. exf5
{[%clk 0:01:42]} 18... Nxf5 {[%clk 0:02:19.9]} 19. Nxf5 {[%clk 0:01:41.3]} 19...
Bxf5 {[%clk 0:02:19.5]} 20. Ne4 {[%clk 0:01:35.8]} 20... Bg6 {[%clk 0:02:18.1]}
21. Qd2 {[%clk 0:01:21]} 21... Rf4 {[%clk 0:02:16.5]} 22. Rae1 {[%clk
0:01:16.6]} 22... b6 {[%clk 0:02:15.9]} 23. Kh2 {[%clk 0:01:08.4]} 23... Raf8
{[%clk 0:02:14.8]} 24. Ng3 {[%clk 0:01:01.9]} 24... Qf6 {[%clk 0:02:04.1]} 25.
Ne4 {[%clk 0:00:46.1]} 25... Bxe4 {[%clk 0:02:00.8]} 26. Bxe4 {[%clk 0:00:46.2]}
26... Rxf2+ {[%clk 0:02:00.7]} 27. Rxf2 {[%clk 0:00:46.6]} 27... Qxf2+ {[%clk
0:02:01]} 28. Qxf2 {[%clk 0:00:45.7]} 28... Rxf2+ {[%clk 0:02:01.9]} 29. Kh1
{[%clk 0:00:32.8]} 29... Rxb2 {[%clk 0:02:02.8]} 30. Bb1 {[%clk 0:00:29.3]}
30... Ne8 {[%clk 0:01:58.8]} 31. Rg1+ {[%clk 0:00:29]} 31... Ng7 {[%clk
0:01:58.7]} 32. h4 {[%clk 0:00:28.2]} 32... h6 {[%clk 0:01:58.8]} 33. a4 {[%clk
0:00:20.4]} 33... Kf7 {[%clk 0:01:50.7]} 34. Bg6+ {[%clk 0:00:19.3]} 34... Ke7
{[%clk 0:01:50.4]} 35. Be4 {[%clk 0:00:15.2]} 35... Ne8 {[%clk 0:01:44.1]} 36.
Rg6 {[%clk 0:00:15]} 36... Re2 {[%clk 0:01:43.9]} 37. Bf5 {[%clk 0:00:12.7]}
37... Rf2 {[%clk 0:01:43.2]} 38. Be6 {[%clk 0:00:12.2]} 38... Rf4 {[%clk
0:01:42.4]} 39. Rxh6 {[%clk 0:00:11.8]} 39... Rxc4 {[%clk 0:01:42.6]} 40. Rh7+
{[%clk 0:00:12]} 40... Kf8 {[%clk 0:01:41.7]} 41. Bd7 {[%clk 0:00:08.3]} 41...
Nf6 {[%clk 0:01:39.4]} 0-1

[Event "Late-Titled-Tuesday-Blitz-July-09-2024"]
[Site "Chess.com"]
[Date "2024.07.09"]
[Round "7"]
[White "giomar27"]
[Black "norwaytoadog"]
[Result "0-1"]
[WhiteElo "2419"]
[BlackElo "2349"]
[TimeControl "180+1"]
[EndTime "15:15:13 PDT"]
[Termination "norwaytoadog won by resignation"]

1. e4 {[%clk 0:03:00]} 1... c5 {[%clk 0:02:58.7]} 2. Nf3 {[%clk 0:02:59.6]} 2...
d6 {[%clk 0:02:59]} 3. d4 {[%clk 0:03:00.1]} 3... cxd4 {[%clk 0:02:59.4]} 4.
Nxd4 {[%clk 0:03:01]} 4... Nf6 {[%clk 0:02:59.7]} 5. Nc3 {[%clk 0:03:01.6]} 5...
a6 {[%clk 0:02:59.3]} 6. Bc4 {[%clk 0:03:01]} 6... e6 {[%clk 0:02:58.9]} 7. Bb3
{[%clk 0:03:01]} 7... Nbd7 {[%clk 0:02:54.2]} 8. f4 {[%clk 0:03:00.7]} 8... Nc5
{[%clk 0:02:52.5]} 9. e5 {[%clk 0:02:59]} 9... Nfd7 {[%clk 0:02:47.5]} 10. exd6
{[%clk 0:02:52.2]} 10... Qh4+ {[%clk 0:02:29.7]} 11. g3 {[%clk 0:02:50.9]} 11...
Qh3 {[%clk 0:02:30.2]} 12. Kf2 {[%clk 0:02:31.8]} 12... Nf6 {[%clk 0:02:18.5]}
13. Qf3 {[%clk 0:02:00.1]} 13... Bxd6 {[%clk 0:02:10.4]} 14. Be3 {[%clk
0:01:53.3]} 14... Ng4+ {[%clk 0:02:04.9]} 15. Ke2 {[%clk 0:01:53.2]} 15... Nxe3
{[%clk 0:02:02.6]} 16. Qxe3 {[%clk 0:01:53.2]} 16... O-O {[%clk 0:01:39.3]} 17.
Nf3 {[%clk 0:01:46.5]} 17... e5 {[%clk 0:01:23.5]} 18. fxe5 {[%clk 0:01:42.2]}
18... Bg4 {[%clk 0:01:22.5]} 19. Kf2 {[%clk 0:01:37.5]} 19... Rae8 {[%clk
0:01:04.5]} 20. Rad1 {[%clk 0:01:21.4]} 20... Bxf3 {[%clk 0:00:59.4]} 21. Qxf3
{[%clk 0:01:18.6]} 21... Bxe5 {[%clk 0:00:59.6]} 22. Rde1 {[%clk 0:00:55.2]}
22... Nxb3 {[%clk 0:00:55.9]} 23. axb3 {[%clk 0:00:53.5]} 23... Re6 {[%clk
0:00:53.7]} 24. Ne4 {[%clk 0:00:49.1]} 24... Bd4+ {[%clk 0:00:45.6]} 25. Ke2
{[%clk 0:00:46.1]} 25... f5 {[%clk 0:00:40.8]} 26. Kd2 {[%clk 0:00:36.4]} 26...
fxe4 {[%clk 0:00:35.9]} 27. Qe2 {[%clk 0:00:36.9]} 27... Rf2 {[%clk 0:00:34.5]}
0-1

[Event "Late-Titled-Tuesday-Blitz-July-09-2024"]
[Site "Chess.com"]
[Date "2024.07.09"]
[Round "7"]
[White "vi_pranav"]
[Black "karinachess1"]
[Result "1-0"]
[WhiteElo "2980"]
[BlackElo "2670"]
[TimeControl "180+1"]
[EndTime "15:15:14 PDT"]
[Termination "vi_pranav won on time"]

1. Nf3 {[%clk 0:03:00.9]} 1... Nf6 {[%clk 0:02:59.7]} 2. g3 {[%clk 0:02:59.8]}
2... e6 {[%clk 0:03:00.1]} 3. Bg2 {[%clk 0:03:00.3]} 3... d5 {[%clk 0:03:01]} 4.
O-O {[%clk 0:03:00.7]} 4... c5 {[%clk 0:03:00]} 5. d3 {[%clk 0:03:01.5]} 5...
Nc6 {[%clk 0:02:59.6]} 6. Bf4 {[%clk 0:03:00.4]} 6... Nh5 {[%clk 0:02:55.6]} 7.
Bd2 {[%clk 0:02:59.7]} 7... Be7 {[%clk 0:02:55.1]} 8. a4 {[%clk 0:02:59.1]} 8...
O-O {[%clk 0:02:54.4]} 9. e4 {[%clk 0:02:59.8]} 9... Nf6 {[%clk 0:02:51.1]} 10.
Re1 {[%clk 0:02:59.3]} 10... dxe4 {[%clk 0:02:44.4]} 11. dxe4 {[%clk 0:02:57.7]}
11... e5 {[%clk 0:02:44.9]} 12. Nc3 {[%clk 0:02:54.5]} 12... Bg4 {[%clk
0:02:36.7]} 13. h3 {[%clk 0:02:53.7]} 13... Bxf3 {[%clk 0:02:35.5]} 14. Bxf3
{[%clk 0:02:52.9]} 14... Nd4 {[%clk 0:02:36.4]} 15. Bg2 {[%clk 0:02:52.4]} 15...
Qc7 {[%clk 0:02:32.2]} 16. Nd5 {[%clk 0:02:51.2]} 16... Nxd5 {[%clk 0:02:23.2]}
17. exd5 {[%clk 0:02:52.1]} 17... Nf5 {[%clk 0:02:16.8]} 18. Qe2 {[%clk
0:02:49.9]} 18... Bd6 {[%clk 0:02:11.3]} 19. c3 {[%clk 0:02:43.3]} 19... Rfe8
{[%clk 0:02:11.2]} 20. h4 {[%clk 0:02:39.6]} 20... h6 {[%clk 0:02:05.5]} 21. Qg4
{[%clk 0:02:36.9]} 21... Qc8 {[%clk 0:01:56.1]} 22. a5 {[%clk 0:01:59.8]} 22...
Ne7 {[%clk 0:01:52.1]} 23. Qa4 {[%clk 0:01:57.4]} 23... a6 {[%clk 0:01:23.6]}
24. Re2 {[%clk 0:01:49.4]} 24... Ng6 {[%clk 0:01:14.9]} 25. Rae1 {[%clk
0:01:42.8]} 25... Rd8 {[%clk 0:01:13.3]} 26. Kh2 {[%clk 0:01:39.5]} 26... Qc7
{[%clk 0:01:12]} 27. Qg4 {[%clk 0:01:36.2]} 27... Qc8 {[%clk 0:01:10.6]} 28. Qh5
{[%clk 0:01:36.1]} 28... Nf8 {[%clk 0:01:09.4]} 29. Be4 {[%clk 0:01:34.6]} 29...
Qc7 {[%clk 0:00:54.2]} 30. c4 {[%clk 0:01:33.1]} 30... Qe7 {[%clk 0:00:38.6]}
31. g4 {[%clk 0:01:30.7]} 31... Ng6 {[%clk 0:00:27.9]} 32. g5 {[%clk 0:01:24.3]}
1-0